Department Family,Entity,Date,Expense Type,Expense Area,Supplier Name,Transaction Number,Amount,Description
Business Unit Name,Entity,Payment Date,Subjective Description,Cost Centre Level 27 Description,Supplier Name,Invoice Number,Invoice Amount,CC Description
York & Scarborough Teaching Hospitals NHS Foundation Trust,York Teaching Hospital Facilities Management LLP BU,01/04/2021,Work-In-Progress,LLP Es620 Bridlington Estate Schemes,Esc Global Ltd,12291,32198.34,LLP Es620 Bridlington Estate Schemes
York & Scarborough Teaching Hospitals NHS Foundation Trust,York Teaching Hospital Facilities Management LLP BU,01/04/2021,Work-In-Progress,LLP Sgh Estates - Other Projects,Bradshaw Rental Vechicles,153160,46588.46,LLP Sgh Estates - Other Projects
York & Scarborough Teaching Hospitals NHS Foundation Trust,York Teaching Hospital Facilities Management LLP BU,01/04/2021,Work-In-Progress,LLP Sgh Estates - Other Projects,Bradshaw Rental Vechicles,153161,25740.1,LLP Sgh Estates - Other Projects
York & Scarborough Teaching Hospitals NHS Foundation Trust,York Teaching Hospital Facilities Management LLP BU,01/04/2021,Work-In-Progress,LLP Sgh Estates - Other Projects,Bradshaw Rental Vechicles,153163,57359.95,LLP Sgh Estates - Other Projects
York & Scarborough Teaching Hospitals NHS Foundation Trust,York Teaching Hospital Facilities Management LLP BU,01/04/2021,Other Creditors < One Year,LLP Rsc Stores Issue Control,NHS Supply Chain Co-ordination Limited,1121207205,47097.76,LLP Rsc Stores Issue Control
York & Scarborough Teaching Hospitals NHS Foundation Trust,York Teaching Hospital Facilities Management LLP BU,01/04/2021,Med Surg Eqpt Mtce Contracts,LLP Care Group 4 - Cancer and Support Services (Excluding Lab Med) - Annual Maintenance Contracts,NHS Supply Chain - Maintenance,2121006315,38757.57,LLP Care Group 4 - Cancer and Support Services (Excluding Lab Med) - Annual Maintenance Contracts
York & Scarborough Teaching Hospitals NHS Foundation Trust,York Teaching Hospital Facilities Management LLP BU,01/04/2021,Work-In-Progress,Adapt & Adopt,NHS Supply Chain,9521002194,249684.02,Adapt & Adopt
York & Scarborough Teaching Hospitals NHS Foundation Trust,York Teaching Hospital Facilities Management LLP BU,01/04/2021,Work-In-Progress,Adapt & Adopt,NHS Supply Chain,9521002195,239730.1,Adapt & Adopt
York & Scarborough Teaching Hospitals NHS Foundation Trust,York Teaching Hospital Facilities Management LLP BU,01/04/2021,Cleaning Equipment,LLP Hydrogen Peroxide Vapour Decontamination Service East Zone,Inivos Ltd,I000003080,33408,LLP Hydrogen Peroxide Vapour Decontamination Service East Zone
York & Scarborough Teaching Hospitals NHS Foundation Trust,York Teaching Hospital Facilities Management LLP BU,01/04/2021,Electricity,LLP Utilities Scarborough Hospital,Npower Ltd,LGWKL5ZX,56316.17,LLP Utilities Scarborough Hospital
York & Scarborough Teaching Hospitals NHS Foundation Trust,York Teaching Hospital Facilities Management LLP BU,01/04/2021,Electricity,LLP Utilities York Hospital,Npower Ltd,LGWKX4NC,38012.32,LLP Utilities York Hospital
York & Scarborough Teaching Hospitals NHS Foundation Trust,York Teaching Hospital Facilities Management LLP BU,01/04/2021,Electricity,LLP Utilities York Hospital,Npower Ltd,LGWKX4ND,31387.66,LLP Utilities York Hospital
York & Scarborough Teaching Hospitals NHS Foundation Trust,York Teaching Hospital Facilities Management LLP BU,01/04/2021,Electricity,LLP Utilities York Hospital,Npower Ltd,LGWKX4NF,31671.44,LLP Utilities York Hospital
York & Scarborough Teaching Hospitals NHS Foundation Trust,York Teaching Hospital Facilities Management LLP BU,01/04/2021,Electricity,LLP Utilities York Hospital,Npower Ltd,LGWKX4NH,33858.5,LLP Utilities York Hospital
York & Scarborough Teaching Hospitals NHS Foundation Trust,York Teaching Hospital Facilities Management LLP BU,01/04/2021,Electricity,LLP Utilities York Hospital,Npower Ltd,LGWKX4NJ,63313.38,LLP Utilities York Hospital
York & Scarborough Teaching Hospitals NHS Foundation Trust,York Teaching Hospital Facilities Management LLP BU,01/04/2021,Electricity,LLP Utilities York Hospital,Npower Ltd,LGWKX4NK,34381.04,LLP Utilities York Hospital
York & Scarborough Teaching Hospitals NHS Foundation Trust,York Teaching Hospital Facilities Management LLP BU,01/04/2021,Electricity,LLP Utilities York Hospital,Npower Ltd,LGWKX4NL,33828.32,LLP Utilities York Hospital
York & Scarborough Teaching Hospitals NHS Foundation Trust,York Teaching Hospital Facilities Management LLP BU,01/04/2021,Electricity,LLP Utilities York Hospital,Npower Ltd,LGWKX4S2,32418.34,LLP Utilities York Hospital
York & Scarborough Teaching Hospitals NHS Foundation Trust,York Teaching Hospital Facilities Management LLP BU,01/04/2021,Electricity,LLP Utilities York Hospital,Npower Ltd,LGWKX4S3,53970.88,LLP Utilities York Hospital
York & Scarborough Teaching Hospitals NHS Foundation Trust,York Teaching Hospital Facilities Management LLP BU,01/04/2021,Electricity,LLP Utilities York Hospital,Npower Ltd,LGWKX4S4,79807.5,LLP Utilities York Hospital
York & Scarborough Teaching Hospitals NHS Foundation Trust,York Teaching Hospital Facilities Management LLP BU,01/04/2021,Electricity,LLP Utilities York Hospital,Npower Ltd,LGWKX4S5,151983.74,LLP Utilities York Hospital
York & Scarborough Teaching Hospitals NHS Foundation Trust,York Teaching Hospital Facilities Management LLP BU,01/04/2021,Electricity,LLP Utilities York Hospital,Npower Ltd,LGWKX4S6,56921.27,LLP Utilities York Hospital
York & Scarborough Teaching Hospitals NHS Foundation Trust,York Teaching Hospital Facilities Management LLP BU,01/04/2021,Electricity,LLP Utilities York Hospital,Npower Ltd,LGWKX4S7,44673.25,LLP Utilities York Hospital
York & Scarborough Teaching Hospitals NHS Foundation Trust,York Teaching Hospital Facilities Management LLP BU,01/04/2021,Electricity,LLP Utilities York Hospital,Npower Ltd,LGWKX4S9,39314.53,LLP Utilities York Hospital
York & Scarborough Teaching Hospitals NHS Foundation Trust,York Teaching Hospital Facilities Management LLP BU,01/04/2021,Electricity,LLP Utilities York Hospital,Npower Ltd,LGWKX4SX,25450.13,LLP Utilities York Hospital
York & Scarborough Teaching Hospitals NHS Foundation Trust,York Teaching Hospital Facilities Management LLP BU,01/04/2021,Electricity,LLP Utilities York Hospital,Npower Ltd,LGWKX4SY,29353.34,LLP Utilities York Hospital
York & Scarborough Teaching Hospitals NHS Foundation Trust,York Teaching Hospital Facilities Management LLP BU,01/04/2021,Electricity,LLP Utilities York Hospital,Npower Ltd,LGWKX4SZ,31678.78,LLP Utilities York Hospital
York & Scarborough Teaching Hospitals NHS Foundation Trust,York Teaching Hospital Facilities Management LLP BU,01/04/2021,Electricity,LLP Utilities York Hospital,Npower Ltd,LGWLX4NG,34553.99,LLP Utilities York Hospital
York & Scarborough Teaching Hospitals NHS Foundation Trust,York Teaching Hospital Facilities Management LLP BU,09/04/2021,Work-In-Progress,LLP Es620 Bridlington Estate Schemes,Esc Global Ltd,12400,32198.34,LLP Es620 Bridlington Estate Schemes
York & Scarborough Teaching Hospitals NHS Foundation Trust,York Teaching Hospital Facilities Management LLP BU,09/04/2021,Furniture And Fittings,LLP Special Programme General,Sunflower Medical Ltd,106368,106449.6,LLP Special Programme General
York & Scarborough Teaching Hospitals NHS Foundation Trust,York Teaching Hospital Facilities Management LLP BU,09/04/2021,Work-In-Progress,LLP Es623 Mechanical Upgrades -York,Quirepace Ltd,135538,38814,LLP Es623 Mechanical Upgrades -York
York & Scarborough Teaching Hospitals NHS Foundation Trust,York Teaching Hospital Facilities Management LLP BU,09/04/2021,Work-In-Progress,East Cost STP (AMM & Infrastructure),Integrated Health Projects,21040021,148253.42,East Cost STP (AMM & Infrastructure)
York & Scarborough Teaching Hospitals NHS Foundation Trust,York Teaching Hospital Facilities Management LLP BU,09/04/2021,Vat Debtor < One Year,LLP Dr Vat Debtor,Integrated Health Projects,21040021,148253.42,LLP Dr Vat Debtor
York & Scarborough Teaching Hospitals NHS Foundation Trust,York Teaching Hospital Facilities Management LLP BU,09/04/2021,Work-In-Progress,ICU Expansion York,Draeger Medical Uk Ltd,252600028,88754.66,ICU Expansion York
York & Scarborough Teaching Hospitals NHS Foundation Trust,York Teaching Hospital Facilities Management LLP BU,09/04/2021,Med Surg Eqpt Leasing,LLP Equipment Lease Charges,Siemens Financial Services Ltd,220/21/0011266,27057.61,LLP Equipment Lease Charges
York & Scarborough Teaching Hospitals NHS Foundation Trust,York Teaching Hospital Facilities Management LLP BU,09/04/2021,Gas,LLP Utilities Scarborough Hospital,Total Gas & Power Ltd,232748620/21,50045.34,LLP Utilities Scarborough Hospital
York & Scarborough Teaching Hospitals NHS Foundation Trust,York Teaching Hospital Facilities Management LLP BU,09/04/2021,Gas,LLP Utilities York Hospital,Total Gas & Power Ltd,232773337/21,81859.98,LLP Utilities York Hospital
York & Scarborough Teaching Hospitals NHS Foundation Trust,York Teaching Hospital Facilities Management LLP BU,09/04/2021,Med Surg Eqpt General,LLP Medical Equipment Purchases (Merg),B. Braun Medical Ltd,C2642,103088.1,LLP Medical Equipment Purchases (Merg)
York & Scarborough Teaching Hospitals NHS Foundation Trust,York Teaching Hospital Facilities Management LLP BU,09/04/2021,Work-In-Progress,LLP Cs001 Medical & Surgical Equip (Over 20k),Oticon Ltd,SOI000366411,52980,LLP Cs001 Medical & Surgical Equip (Over 20k)
York & Scarborough Teaching Hospitals NHS Foundation Trust,York Teaching Hospital Facilities Management LLP BU,13/04/2021,Lease Rents,LLP Facilities Management Team,York and Scarborough Teaching Hospitals NHS Foundation Trust,1010081161,1872289.2,LLP Facilities Management Team
York & Scarborough Teaching Hospitals NHS Foundation Trust,York Teaching Hospital Facilities Management LLP BU,13/04/2021,Contract : Other External,LLP Facilities Management Team,York and Scarborough Teaching Hospitals NHS Foundation Trust,1010081162,50000.4,LLP Facilities Management Team
York & Scarborough Teaching Hospitals NHS Foundation Trust,York Teaching Hospital Facilities Management LLP BU,13/04/2021,Energy Management Contracts,LLP York Hospital Site Expenses,Vital Energi Solutions Ltd,SI-12221,26354.15,LLP York Hospital Site Expenses
York & Scarborough Teaching Hospitals NHS Foundation Trust,York Teaching Hospital Facilities Management LLP BU,16/04/2021,Work-In-Progress,Ann Wright & Haldane Ward Project,F. Parkinson Ltd,10043,48484.8,Ann Wright & Haldane Ward Project
York & Scarborough Teaching Hospitals NHS Foundation Trust,York Teaching Hospital Facilities Management LLP BU,16/04/2021,Contract : Refuse And Clinical Waste,LLP Clinical Waste Disposal (York),Mitie Waste And Environmental Services Ltd,213357,118783.76,LLP Clinical Waste Disposal (York)
York & Scarborough Teaching Hospitals NHS Foundation Trust,York Teaching Hospital Facilities Management LLP BU,16/04/2021,Med Surg Eqpt Mtce Contracts,LLP Care Group 3 � Surgery -�Annual Maintenance Contracts,Auditdata Ltd,PI003499,30283.2,LLP Care Group 3 � Surgery -�Annual Maintenance Contracts
York & Scarborough Teaching Hospitals NHS Foundation Trust,York Teaching Hospital Facilities Management LLP BU,20/04/2021,Work-In-Progress,LLP Cs005 Minor Business,F. Parkinson Ltd,10051,115573.2,LLP Cs005 Minor Business
York & Scarborough Teaching Hospitals NHS Foundation Trust,York Teaching Hospital Facilities Management LLP BU,20/04/2021,Work-In-Progress,Adapt & Adopt,F. Parkinson Ltd,10057,72000,Adapt & Adopt
York & Scarborough Teaching Hospitals NHS Foundation Trust,York Teaching Hospital Facilities Management LLP BU,20/04/2021,Work-In-Progress,Decontamination Replacement Plan,Mmm Medical Equipment U K Ltd,13763,393887.15,Decontamination Replacement Plan
York & Scarborough Teaching Hospitals NHS Foundation Trust,York Teaching Hospital Facilities Management LLP BU,20/04/2021,Work-In-Progress,LLP Cs001 Medical & Surgical Equip (Over 20k),Sonosite Fujifilm Ltd,385117,86580,LLP Cs001 Medical & Surgical Equip (Over 20k)
York & Scarborough Teaching Hospitals NHS Foundation Trust,York Teaching Hospital Facilities Management LLP BU,20/04/2021,Insurance Costs,LLP Mechanical (York),Zurich Municipal,445767,29430.31,LLP Mechanical (York)
York & Scarborough Teaching Hospitals NHS Foundation Trust,York Teaching Hospital Facilities Management LLP BU,20/04/2021,Work-In-Progress,York ED Major Scheme,Kier Construction - North and Scotland,10255069,659065.66,York ED Major Scheme
York & Scarborough Teaching Hospitals NHS Foundation Trust,York Teaching Hospital Facilities Management LLP BU,20/04/2021,Other Creditors < One Year,LLP Rsc Stores Issue Control,NHS Supply Chain Co-ordination Limited,1121216702,31814.62,LLP Rsc Stores Issue Control
York & Scarborough Teaching Hospitals NHS Foundation Trust,York Teaching Hospital Facilities Management LLP BU,20/04/2021,Med Surg Eqpt General,LLP Medical Equipment Purchases (Merg),Fujifilm Uk Limited,3500001701,100109.34,LLP Medical Equipment Purchases (Merg)
York & Scarborough Teaching Hospitals NHS Foundation Trust,York Teaching Hospital Facilities Management LLP BU,20/04/2021,Work-In-Progress,LLP Es614 Building Works - Scarborough,Paul Raper Joinery,19-184,25200,LLP Es614 Building Works - Scarborough
York & Scarborough Teaching Hospitals NHS Foundation Trust,York Teaching Hospital Facilities Management LLP BU,20/04/2021,Tax And Social Security Costs < One Year,LLP Inland Revenue Income Tax,Hm Revenue And Customs,475PS01299816MAR21,353300.97,LLP Inland Revenue Income Tax
York & Scarborough Teaching Hospitals NHS Foundation Trust,York Teaching Hospital Facilities Management LLP BU,22/04/2021,Engineering  Contracts,LLP York Hospital Site Expenses,Bender U K Ltd,42353,27241.2,LLP York Hospital Site Expenses
York & Scarborough Teaching Hospitals NHS Foundation Trust,York Teaching Hospital Facilities Management LLP BU,22/04/2021,Work-In-Progress,LLP Cs001 Medical & Surgical Equip (Over 20k),Xograph Healthcare Ltd,77489,27396,LLP Cs001 Medical & Surgical Equip (Over 20k)
York & Scarborough Teaching Hospitals NHS Foundation Trust,York Teaching Hospital Facilities Management LLP BU,22/04/2021,Work-In-Progress,York ED Major Scheme,Kier Construction - North and Scotland,10255879,468038.68,York ED Major Scheme
York & Scarborough Teaching Hospitals NHS Foundation Trust,York Teaching Hospital Facilities Management LLP BU,22/04/2021,Work-In-Progress,Adapt & Adopt,Olympus Keymed,A1654214,142242.48,Adapt & Adopt
York & Scarborough Teaching Hospitals NHS Foundation Trust,York Teaching Hospital Facilities Management LLP BU,22/04/2021,Work-In-Progress,Adapt & Adopt,Olympus Keymed,A1654250,248924.34,Adapt & Adopt
York & Scarborough Teaching Hospitals NHS Foundation Trust,York Teaching Hospital Facilities Management LLP BU,27/04/2021,Med Surg Eqpt Mtce Contracts,LLP Laboratory Medicine Maintenance Contracts,Stryker Uk Ltd,28860078,48858,LLP Laboratory Medicine Maintenance Contracts
York & Scarborough Teaching Hospitals NHS Foundation Trust,York Teaching Hospital Facilities Management LLP BU,27/04/2021,Med Surg Eqpt Mtce Contracts,LLP Laboratory Medicine Maintenance Contracts,Stryker Uk Ltd,28860078,48858,LLP Laboratory Medicine Maintenance Contracts
York & Scarborough Teaching Hospitals NHS Foundation Trust,York Teaching Hospital Facilities Management LLP BU,27/04/2021,Med Surg Eqpt Mtce Contracts,LLP Medical Engineering - Sgh,Stryker Uk Ltd,28929034,25758,LLP Medical Engineering - Sgh
York & Scarborough Teaching Hospitals NHS Foundation Trust,York Teaching Hospital Facilities Management LLP BU,27/04/2021,Med Surg Eqpt Mtce Contracts,LLP Medical Engineering - Sgh,Stryker Uk Ltd,28929034,25758,LLP Medical Engineering - Sgh
York & Scarborough Teaching Hospitals NHS Foundation Trust,York Teaching Hospital Facilities Management LLP BU,27/04/2021,Med Surg Eqpt Mtce Contracts,LLP Laboratory Medicine Maintenance Contracts,Stryker Uk Ltd,28962565,48858,LLP Laboratory Medicine Maintenance Contracts
York & Scarborough Teaching Hospitals NHS Foundation Trust,York Teaching Hospital Facilities Management LLP BU,27/04/2021,Work-In-Progress,LLP Es610 Electrical Upgrades - York,Schneider Electric Ltd,99754026,28400.28,LLP Es610 Electrical Upgrades - York
York & Scarborough Teaching Hospitals NHS Foundation Trust,York Teaching Hospital Facilities Management LLP BU,27/04/2021,X-Ray Equipment : Maintenance,LLP Care Group 4 - Cancer and Support Services (Excluding Lab Med) - Annual Maintenance Contracts,NHS Supply Chain - Maintenance,2121007714,181919.19,LLP Care Group 4 - Cancer and Support Services (Excluding Lab Med) - Annual Maintenance Contracts
York & Scarborough Teaching Hospitals NHS Foundation Trust,York Teaching Hospital Facilities Management LLP BU,27/04/2021,Work-In-Progress,LLP Es619 Mechanical Upgrades - Scarborough,Geoffrey Robinson Ltd,AP253991.00,55079.89,LLP Es619 Mechanical Upgrades - Scarborough
York & Scarborough Teaching Hospitals NHS Foundation Trust,York Teaching Hospital Facilities Management LLP BU,27/04/2021,Work-In-Progress,Adapt & Adopt,Olympus Keymed,CD2660345,186976.83,Adapt & Adopt
York & Scarborough Teaching Hospitals NHS Foundation Trust,York Teaching Hospital Facilities Management LLP BU,27/04/2021,Work-In-Progress,LLP Es614 Building Works - Scarborough,TSPro Ltd,SI-202101277,76173.65,LLP Es614 Building Works - Scarborough
York & Scarborough Teaching Hospitals NHS Foundation Trust,York Teaching Hospital Facilities Management LLP BU,27/04/2021,Work-In-Progress,LLP Road Repairs,TSPro Ltd,SI-202101279,29269.82,LLP Road Repairs
York & Scarborough Teaching Hospitals NHS Foundation Trust,York Teaching Hospital Facilities Management LLP BU,27/04/2021,Work-In-Progress,LLP Es620 Bridlington Estate Schemes,TSPro Ltd,SI-202101280,102000,LLP Es620 Bridlington Estate Schemes
York & Scarborough Teaching Hospitals NHS Foundation Trust,York Teaching Hospital Facilities Management LLP BU,30/04/2021,Work-In-Progress,LLP Es610 Electrical Upgrades - York,F. Parkinson Ltd,10056,108210,LLP Es610 Electrical Upgrades - York
York & Scarborough Teaching Hospitals NHS Foundation Trust,York Teaching Hospital Facilities Management LLP BU,30/04/2021,Work-In-Progress,LLP Cs001 Medical & Surgical Equip (Over 20k),Mis Healthcare Ltd,83483,169128,LLP Cs001 Medical & Surgical Equip (Over 20k)
York & Scarborough Teaching Hospitals NHS Foundation Trust,York Teaching Hospital Facilities Management LLP BU,30/04/2021,Work-In-Progress,LLP Cs001 Medical & Surgical Equip (Over 20k),Sense Medical Ltd,101295,39324,LLP Cs001 Medical & Surgical Equip (Over 20k)
York & Scarborough Teaching Hospitals NHS Foundation Trust,York Teaching Hospital Facilities Management LLP BU,30/04/2021,X-Ray Equipment : Maintenance,LLP Care Group 4 - Cancer and Support Services (Excluding Lab Med) - Annual Maintenance Contracts,NHS Supply Chain - Maintenance,2121006319,177576,LLP Care Group 4 - Cancer and Support Services (Excluding Lab Med) - Annual Maintenance Contracts
York & Scarborough Teaching Hospitals NHS Foundation Trust,York Teaching Hospital Facilities Management LLP BU,30/04/2021,Work-In-Progress,York ED Major Scheme,Karl Storz Endoscopy (Uk) Ltd,6020085773,77534.28,York ED Major Scheme
York & Scarborough Teaching Hospitals NHS Foundation Trust,York Teaching Hospital Facilities Management LLP BU,30/04/2021,Work-In-Progress,LLP Cs001 Medical & Surgical Equip (Over 20k),Philips Healthcare,7300360890,88451.22,LLP Cs001 Medical & Surgical Equip (Over 20k)
York & Scarborough Teaching Hospitals NHS Foundation Trust,York Teaching Hospital Facilities Management LLP BU,30/04/2021,Work-In-Progress,LLP York Estates - Other Projects,Jewson Ltd,0401/00199600,31953.82,LLP York Estates - Other Projects
York & Scarborough Teaching Hospitals NHS Foundation Trust,York Teaching Hospital Facilities Management LLP BU,30/04/2021,Work-In-Progress,LLP York Estates - Other Projects,Jewson Ltd,0401/00199883,34926.26,LLP York Estates - Other Projects
York & Scarborough Teaching Hospitals NHS Foundation Trust,York Teaching Hospital Facilities Management LLP BU,30/04/2021,Work-In-Progress,LLP Es620 Bridlington Estate Schemes,H Pickup Mechanical & Electrical Services Ltd,INV-15051,35898,LLP Es620 Bridlington Estate Schemes
York & Scarborough Teaching Hospitals NHS Foundation Trust,York Teaching Hospital Facilities Management LLP BU,30/04/2021,Work-In-Progress,LLP Es620 Bridlington Estate Schemes,H Pickup Mechanical & Electrical Services Ltd,INV-15052,54252,LLP Es620 Bridlington Estate Schemes
York & Scarborough Teaching Hospitals NHS Foundation Trust,York Teaching Hospital Facilities Management LLP BU,30/04/2021,Work-In-Progress,LLP Es620 Bridlington Estate Schemes,H Pickup Mechanical & Electrical Services Ltd,INV-15053,48027.6,LLP Es620 Bridlington Estate Schemes
York & Scarborough Teaching Hospitals NHS Foundation Trust,York Teaching Hospital Facilities Management LLP BU,30/04/2021,Work-In-Progress,LLP Cs005 Minor Business,H Pickup Mechanical & Electrical Services Ltd,INV-15056,55711.2,LLP Cs005 Minor Business
